[Event "Early-Titled-Tuesday-Blitz-February-27-2024"]
[Site "Chess.com"]
[Date "2024.02.27"]
[Round "6"]
[White "ViktoriyaTarasova"]
[Black "sathvikadiga"]
[Result "0-1"]
[WhiteElo "2323"]
[BlackElo "2549"]
[TimeControl "180+1"]
[EndTime "9:04:20 PST"]
[Termination "sathvikadiga won on time"]

1. d4 {[%clk 0:03:00.9]} 1... Nf6 {[%clk 0:02:59.8]} 2. c4 {[%clk 0:03:00.8]}
2... g6 {[%clk 0:03:00.4]} 3. Nc3 {[%clk 0:03:00.9]} 3... Bg7 {[%clk 0:03:01.3]}
4. e4 {[%clk 0:03:00.7]} 4... d6 {[%clk 0:03:02.2]} 5. h3 {[%clk 0:03:01]} 5...
O-O {[%clk 0:03:02.6]} 6. Be3 {[%clk 0:03:01.6]} 6... e5 {[%clk 0:03:03.2]} 7.
d5 {[%clk 0:03:01.7]} 7... a5 {[%clk 0:03:03.8]} 8. g4 {[%clk 0:03:01.5]} 8...
Na6 {[%clk 0:03:04.3]} 9. Nge2 {[%clk 0:02:57.2]} 9... Ne8 {[%clk 0:03:04.3]}
10. Ng3 {[%clk 0:02:57.3]} 10... f5 {[%clk 0:03:04.6]} 11. gxf5 {[%clk
0:02:56.4]} 11... gxf5 {[%clk 0:03:05.5]} 12. exf5 {[%clk 0:02:55]} 12... Kh8
{[%clk 0:03:02.3]} 13. Bd3 {[%clk 0:02:49.2]} 13... Nc5 {[%clk 0:02:57]} 14. Bc2
{[%clk 0:02:47.6]} 14... Nf6 {[%clk 0:02:49.9]} 15. Qe2 {[%clk 0:02:46.2]} 15...
Qe7 {[%clk 0:02:46.4]} 16. O-O-O {[%clk 0:02:44.5]} 16... c6 {[%clk 0:02:40.2]}
17. Bg5 {[%clk 0:02:32.3]} 17... h6 {[%clk 0:02:22.4]} 18. Bh4 {[%clk
0:02:23.6]} 18... Qf7 {[%clk 0:02:13.2]} 19. dxc6 {[%clk 0:02:10.4]} 19... bxc6
{[%clk 0:02:12.9]} 20. Rxd6 {[%clk 0:02:10.9]} 20... Qc7 {[%clk 0:02:12.1]} 21.
Rdd1 {[%clk 0:02:00.7]} 21... Rb8 {[%clk 0:02:08.7]} 22. Bxf6 {[%clk 0:01:31]}
22... Bxf6 {[%clk 0:02:09.6]} 23. Nce4 {[%clk 0:01:31.4]} 23... Qb6 {[%clk
0:02:04]} 24. b3 {[%clk 0:00:41]} 24... Bg7 {[%clk 0:01:50]} 25. Qe3 {[%clk
0:00:30.7]} 25... Nxe4 {[%clk 0:01:31]} 26. Qxb6 {[%clk 0:00:30.5]} 26... Rxb6
{[%clk 0:01:31.9]} 27. Bxe4 {[%clk 0:00:30.6]} 27... a4 {[%clk 0:01:30.9]} 28.
Kc2 {[%clk 0:00:29.9]} 28... Ba6 {[%clk 0:01:26]} 29. Rd6 {[%clk 0:00:23.4]}
29... axb3+ {[%clk 0:00:56.4]} 30. axb3 {[%clk 0:00:23]} 30... Bb7 {[%clk
0:00:55.5]} 31. Nh5 {[%clk 0:00:18.3]} 31... Ra8 {[%clk 0:00:52.1]} 32. Rb1
{[%clk 0:00:16.5]} 32... Bf8 {[%clk 0:00:49.6]} 33. Rd7 {[%clk 0:00:15.2]} 33...
Bc8 {[%clk 0:00:44.1]} 34. Rd8 {[%clk 0:00:12.1]} 34... Bb7 {[%clk 0:00:38.8]}
0-1

[Event "Early-Titled-Tuesday-Blitz-February-27-2024"]
[Site "Chess.com"]
[Date "2024.02.27"]
[Round "6"]
[White "1mbl4"]
[Black "Kazancev_Valerij_M"]
[Result "1-0"]
[WhiteElo "2609"]
[BlackElo "2411"]
[TimeControl "180+1"]
[EndTime "9:04:22 PST"]
[Termination "1mbl4 won by checkmate"]

1. d4 {[%clk 0:03:00.9]} 1... g6 {[%clk 0:02:57.1]} 2. Nc3 {[%clk 0:02:58.6]}
2... Bg7 {[%clk 0:02:56.8]} 3. Bf4 {[%clk 0:02:58.7]} 3... e6 {[%clk 0:02:51.2]}
4. h4 {[%clk 0:02:58.2]} 4... h6 {[%clk 0:02:50.5]} 5. e3 {[%clk 0:02:53.8]}
5... d6 {[%clk 0:02:50.6]} 6. Qd2 {[%clk 0:02:49.8]} 6... a6 {[%clk 0:02:50.1]}
7. Nf3 {[%clk 0:02:39.3]} 7... Ne7 {[%clk 0:02:49]} 8. Be2 {[%clk 0:02:38.3]}
8... b5 {[%clk 0:02:46.2]} 9. g4 {[%clk 0:02:20.5]} 9... Bb7 {[%clk 0:02:41.6]}
10. O-O-O {[%clk 0:02:15.7]} 10... Nd7 {[%clk 0:02:39.9]} 11. a3 {[%clk
0:02:07.2]} 11... Nb6 {[%clk 0:02:36.1]} 12. e4 {[%clk 0:02:05.6]} 12... Nc4
{[%clk 0:02:23.5]} 13. Bxc4 {[%clk 0:02:04.9]} 13... bxc4 {[%clk 0:02:23.7]} 14.
Qe2 {[%clk 0:02:03.3]} 14... h5 {[%clk 0:01:51.4]} 15. g5 {[%clk 0:01:55]} 15...
d5 {[%clk 0:01:48.3]} 16. Be5 {[%clk 0:01:54.9]} 16... O-O {[%clk 0:01:02.1]}
17. Bxg7 {[%clk 0:01:49]} 17... Kxg7 {[%clk 0:00:59.5]} 18. Ne5 {[%clk
0:01:49.6]} 18... dxe4 {[%clk 0:00:53.8]} 19. Nxe4 {[%clk 0:01:44.3]} 19... Nf5
{[%clk 0:00:49.5]} 20. c3 {[%clk 0:01:43.8]} 20... Bxe4 {[%clk 0:00:41.7]} 21.
Qxe4 {[%clk 0:01:41.6]} 21... Qd5 {[%clk 0:00:41.8]} 22. Qe2 {[%clk 0:01:36.3]}
22... Rab8 {[%clk 0:00:24.3]} 23. Qxc4 {[%clk 0:01:34.4]} 23... Qg2 {[%clk
0:00:22.4]} 24. Nd7 {[%clk 0:01:16.6]} 24... Qxf2 {[%clk 0:00:21.2]} 25. Rd2
{[%clk 0:01:08.7]} 25... Qf4 {[%clk 0:00:18.2]} 26. Nxf8 {[%clk 0:01:01.6]}
26... Rxf8 {[%clk 0:00:17.5]} 27. Qxa6 {[%clk 0:01:01.1]} 27... Nxh4 {[%clk
0:00:16.8]} 28. Rf1 {[%clk 0:00:43]} 28... Qxg5 {[%clk 0:00:15.2]} 29. Qc6
{[%clk 0:00:36.1]} 29... Rb8 {[%clk 0:00:13.3]} 30. Qxc7 {[%clk 0:00:28]} 30...
Rxb2 {[%clk 0:00:13.1]} 31. Rxf7+ {[%clk 0:00:27.1]} 31... Kh6 {[%clk
0:00:13.6]} 32. Rh7# {[%clk 0:00:26.9]} 1-0

[Event "Early-Titled-Tuesday-Blitz-February-27-2024"]
[Site "Chess.com"]
[Date "2024.02.27"]
[Round "6"]
[White "TregubovP"]
[Black "LimeInTheCoconut"]
[Result "1-0"]
[WhiteElo "2677"]
[BlackElo "2500"]
[TimeControl "180+1"]
[EndTime "9:04:25 PST"]
[Termination "TregubovP won on time"]

1. e4 {[%clk 0:03:00.9]} 1... e5 {[%clk 0:02:58.3]} 2. Nf3 {[%clk 0:03:00]} 2...
Nc6 {[%clk 0:02:58.5]} 3. Bb5 {[%clk 0:02:55.4]} 3... g6 {[%clk 0:02:58.5]} 4.
d4 {[%clk 0:02:53.4]} 4... exd4 {[%clk 0:02:57.2]} 5. Bg5 {[%clk 0:02:54]} 5...
Be7 {[%clk 0:02:54.6]} 6. Bxe7 {[%clk 0:02:24.3]} 6... Qxe7 {[%clk 0:02:55.5]}
7. O-O {[%clk 0:02:24.5]} 7... Qb4 {[%clk 0:02:47.8]} 8. a4 {[%clk 0:01:56.4]}
8... Nge7 {[%clk 0:02:32.4]} 9. Nbd2 {[%clk 0:01:52.8]} 9... a6 {[%clk 0:02:25]}
10. Bd3 {[%clk 0:01:45.1]} 10... O-O {[%clk 0:02:09.7]} 11. Nb3 {[%clk
0:01:38.6]} 11... d5 {[%clk 0:01:46.5]} 12. exd5 {[%clk 0:01:21.9]} 12... Nxd5
{[%clk 0:01:44.9]} 13. Be4 {[%clk 0:01:22.3]} 13... Rd8 {[%clk 0:01:23.8]} 14.
Qc1 {[%clk 0:01:01.4]} 14... Nf6 {[%clk 0:01:10.7]} 15. Bxc6 {[%clk 0:00:59.3]}
15... bxc6 {[%clk 0:01:11.6]} 16. Qg5 {[%clk 0:00:55.1]} 16... Kg7 {[%clk
0:01:07.8]} 17. Nbxd4 {[%clk 0:00:43.4]} 17... Qxb2 {[%clk 0:00:24.4]} 18. Nxc6
{[%clk 0:00:39]} 18... Rd5 {[%clk 0:00:21.2]} 19. Qe3 {[%clk 0:00:39.1]} 19...
Bb7 {[%clk 0:00:16.3]} 20. Rab1 {[%clk 0:00:34.8]} 20... Qxb1 {[%clk 0:00:15.9]}
21. Rxb1 {[%clk 0:00:33.2]} 21... Bxc6 {[%clk 0:00:16.4]} 22. Qc3 {[%clk
0:00:27.5]} 22... Rd6 {[%clk 0:00:13.3]} 23. Ne5 {[%clk 0:00:24]} 23... Be4
{[%clk 0:00:05.7]} 24. f3 {[%clk 0:00:21.3]} 24... Bd5 {[%clk 0:00:03.9]} 25.
Ng4 {[%clk 0:00:18.1]} 25... Rad8 {[%clk 0:00:03.3]} 26. Nxf6 {[%clk 0:00:15.2]}
26... Rxf6 {[%clk 0:00:03]} 27. Qxc7 {[%clk 0:00:15.8]} 27... Rfd6 {[%clk
0:00:01.7]} 28. Rb6 {[%clk 0:00:15.8]} 1-0

[Event "Early-Titled-Tuesday-Blitz-February-27-2024"]
[Site "Chess.com"]
[Date "2024.02.27"]
[Round "6"]
[White "MessiKingdom"]
[Black "Anton_Demchenko"]
[Result "1-0"]
[WhiteElo "2655"]
[BlackElo "2897"]
[TimeControl "180+1"]
[EndTime "9:04:28 PST"]
[Termination "MessiKingdom won by resignation"]

1. d4 {[%clk 0:03:00.9]} 1... Nf6 {[%clk 0:02:58.6]} 2. Bf4 {[%clk 0:03:00.4]}
2... g6 {[%clk 0:02:54.9]} 3. Nc3 {[%clk 0:03:00.3]} 3... d5 {[%clk 0:02:54.7]}
4. e3 {[%clk 0:03:00.9]} 4... c6 {[%clk 0:02:54.4]} 5. Nf3 {[%clk 0:02:57.6]}
5... Bg7 {[%clk 0:02:54.4]} 6. Be2 {[%clk 0:02:47.8]} 6... Bg4 {[%clk
0:02:51.3]} 7. h3 {[%clk 0:02:47.4]} 7... Bxf3 {[%clk 0:02:51.5]} 8. Bxf3 {[%clk
0:02:48.3]} 8... Nbd7 {[%clk 0:02:51.2]} 9. O-O {[%clk 0:02:48.2]} 9... O-O
{[%clk 0:02:49.9]} 10. e4 {[%clk 0:02:43.5]} 10... e6 {[%clk 0:02:44.9]} 11. Bd6
{[%clk 0:02:33.5]} 11... dxe4 {[%clk 0:02:18.6]} 12. Bxf8 {[%clk 0:02:30.1]}
12... exf3 {[%clk 0:02:18.8]} 13. Bxg7 {[%clk 0:02:30.5]} 13... fxg2 {[%clk
0:02:19]} 14. Kxg2 {[%clk 0:02:30.1]} 14... Kxg7 {[%clk 0:02:19.6]} 15. Qf3
{[%clk 0:02:28.2]} 15... Qb6 {[%clk 0:02:18.8]} 16. Rab1 {[%clk 0:02:28.3]}
16... Qxd4 {[%clk 0:02:16.6]} 17. Rfd1 {[%clk 0:02:25.7]} 17... Qe5 {[%clk
0:02:14.6]} 18. Ne4 {[%clk 0:02:18.6]} 18... Nb6 {[%clk 0:01:45.7]} 19. Qxf6+
{[%clk 0:02:17.3]} 19... Qxf6 {[%clk 0:01:46.4]} 20. Nxf6 {[%clk 0:02:18.2]}
20... Kxf6 {[%clk 0:01:47.1]} 21. b3 {[%clk 0:02:15.6]} 21... Ke7 {[%clk
0:01:45.7]} 22. c4 {[%clk 0:02:15.7]} 22... Nd7 {[%clk 0:01:35.5]} 23. Rd2
{[%clk 0:02:14.9]} 23... c5 {[%clk 0:01:24.5]} 24. Rbd1 {[%clk 0:02:14]} 24...
Ne5 {[%clk 0:01:24.9]} 25. f4 {[%clk 0:02:12.6]} 25... Nc6 {[%clk 0:01:19.8]}
26. Rd7+ {[%clk 0:02:13]} 26... Ke8 {[%clk 0:00:27]} 27. Rxb7 {[%clk 0:02:13.9]}
27... Nd8 {[%clk 0:00:24.4]} 28. Rc7 {[%clk 0:02:12.2]} 28... a5 {[%clk
0:00:23.5]} 29. Rxc5 {[%clk 0:02:07.6]} 29... e5 {[%clk 0:00:19.1]} 30. Rxe5+
{[%clk 0:02:07.1]} 30... Ne6 {[%clk 0:00:19.8]} 31. Rdd5 {[%clk 0:02:05.4]}
31... a4 {[%clk 0:00:17]} 32. Ra5 {[%clk 0:02:04.9]} 32... Rd8 {[%clk
0:00:17.7]} 33. Rxa4 {[%clk 0:02:04.9]} 33... Rd2+ {[%clk 0:00:18.4]} 34. Kf3
{[%clk 0:02:02.3]} 34... Rd3+ {[%clk 0:00:18.4]} 35. Re3 {[%clk 0:02:02.5]}
35... Rd1 {[%clk 0:00:18.8]} 36. c5 {[%clk 0:02:01.6]} 36... Kd7 {[%clk
0:00:19]} 37. Rc4 {[%clk 0:01:54.2]} 37... Kc6 {[%clk 0:00:19]} 38. b4 {[%clk
0:01:54.2]} 38... Nd4+ {[%clk 0:00:18.4]} 39. Kf2 {[%clk 0:01:13.4]} 39... Kd5
{[%clk 0:00:17.9]} 40. Rec3 {[%clk 0:01:00]} 40... Nb5 {[%clk 0:00:06.1]} 41. c6
{[%clk 0:00:58.5]} 41... Nxc3 {[%clk 0:00:02.8]} 42. Rxc3 {[%clk 0:00:59.4]}
42... Rd2+ {[%clk 0:00:02.2]} 43. Ke1 {[%clk 0:00:59.3]} 43... Rxa2 {[%clk
0:00:02.6]} 44. c7 {[%clk 0:00:59.9]} 44... Ra8 {[%clk 0:00:03.4]} 45. c8=Q
{[%clk 0:01:00.5]} 45... Rxc8 {[%clk 0:00:04.2]} 46. Rxc8 {[%clk 0:01:01.4]} 1-0

[Event "Early-Titled-Tuesday-Blitz-February-27-2024"]
[Site "Chess.com"]
[Date "2024.02.27"]
[Round "6"]
[White "MIss_MIaMI"]
[Black "BozeKat"]
[Result "0-1"]
[WhiteElo "2395"]
[BlackElo "2164"]
[TimeControl "180+1"]
[EndTime "9:04:32 PST"]
[Termination "BozeKat won by resignation"]

1. e4 {[%clk 0:03:00.9]} 1... c5 {[%clk 0:02:59.9]} 2. Nf3 {[%clk 0:03:00]} 2...
a6 {[%clk 0:03:00.2]} 3. d4 {[%clk 0:03:00.4]} 3... cxd4 {[%clk 0:02:59.7]} 4.
c3 {[%clk 0:03:00.9]} 4... dxc3 {[%clk 0:02:43.1]} 5. Nxc3 {[%clk 0:03:01.8]}
5... d6 {[%clk 0:02:36.2]} 6. Bc4 {[%clk 0:03:01.3]} 6... e6 {[%clk 0:02:35.4]}
7. Bf4 {[%clk 0:03:01.1]} 7... Be7 {[%clk 0:02:31.8]} 8. O-O {[%clk 0:03:01.2]}
8... Nf6 {[%clk 0:02:29.4]} 9. Qe2 {[%clk 0:03:00.4]} 9... O-O {[%clk
0:02:27.1]} 10. Rfd1 {[%clk 0:03:00.2]} 10... b5 {[%clk 0:02:23.3]} 11. Bb3
{[%clk 0:02:59]} 11... Qb6 {[%clk 0:02:20.6]} 12. Rac1 {[%clk 0:02:42.3]} 12...
Nc6 {[%clk 0:02:09.7]} 13. e5 {[%clk 0:02:37.1]} 13... Nxe5 {[%clk 0:02:05.2]}
14. Nxe5 {[%clk 0:02:38]} 14... dxe5 {[%clk 0:02:04]} 15. Bxe5 {[%clk
0:02:38.6]} 15... Bb7 {[%clk 0:01:35.5]} 16. Bd4 {[%clk 0:02:30.1]} 16... Qc6
{[%clk 0:01:14.7]} 17. f3 {[%clk 0:02:30.1]} 17... Rac8 {[%clk 0:01:00.6]} 18.
Bc2 {[%clk 0:02:14.6]} 18... Rfd8 {[%clk 0:00:58.3]} 19. Nb1 {[%clk 0:02:03.8]}
19... Rxd4 {[%clk 0:00:21.3]} 20. Rxd4 {[%clk 0:01:49.8]} 20... Bc5 {[%clk
0:00:22.2]} 21. Qf2 {[%clk 0:01:30.4]} 21... Qb6 {[%clk 0:00:22]} 22. Rcd1
{[%clk 0:01:25.1]} 22... e5 {[%clk 0:00:22]} 23. Rd8+ {[%clk 0:01:17.9]} 23...
Ne8 {[%clk 0:00:19.1]} 24. R8d2 {[%clk 0:00:46.2]} 24... Bxf2+ {[%clk
0:00:18.6]} 25. Kf1 {[%clk 0:00:42]} 25... Bd4 {[%clk 0:00:17.6]} 26. Bf5 {[%clk
0:00:40.3]} 26... Rd8 {[%clk 0:00:16.3]} 27. Na3 {[%clk 0:00:37.6]} 27... g6
{[%clk 0:00:16.4]} 28. Bb1 {[%clk 0:00:35.8]} 28... Ng7 {[%clk 0:00:16.3]} 29.
Nc2 {[%clk 0:00:36.2]} 29... Ne6 {[%clk 0:00:16.5]} 30. Nb4 {[%clk 0:00:33.9]}
30... Bc5 {[%clk 0:00:14.2]} 31. Nd3 {[%clk 0:00:31.1]} 31... Be3 {[%clk
0:00:12.2]} 32. Re2 {[%clk 0:00:29.3]} 32... e4 {[%clk 0:00:12.5]} 33. fxe4
{[%clk 0:00:24.5]} 33... Bxe4 {[%clk 0:00:13.4]} 34. Nf2 {[%clk 0:00:16.9]}
34... Rxd1+ {[%clk 0:00:12.5]} 35. Nxd1 {[%clk 0:00:17.8]} 35... Bxb1 {[%clk
0:00:12.8]} 36. Nxe3 {[%clk 0:00:17.1]} 36... Bd3 {[%clk 0:00:13]} 37. Kf2
{[%clk 0:00:16.5]} 37... Bxe2 {[%clk 0:00:13.2]} 0-1

[Event "Early-Titled-Tuesday-Blitz-February-27-2024"]
[Site "Chess.com"]
[Date "2024.02.27"]
[Round "6"]
[White "Chopper1905"]
[Black "JaloliddinIlkhomi"]
[Result "1-0"]
[WhiteElo "2929"]
[BlackElo "2765"]
[TimeControl "180+1"]
[EndTime "9:04:36 PST"]
[Termination "Chopper1905 won by resignation"]

1. d4 {[%clk 0:02:53]} 1... Nf6 {[%clk 0:02:59.5]} 2. c4 {[%clk 0:02:53.3]} 2...
e6 {[%clk 0:03:00.1]} 3. Nf3 {[%clk 0:02:53.6]} 3... b6 {[%clk 0:03:00]} 4. g3
{[%clk 0:02:53.5]} 4... Bb7 {[%clk 0:03:00.6]} 5. Bg2 {[%clk 0:02:52.1]} 5...
Bb4+ {[%clk 0:02:59.9]} 6. Nbd2 {[%clk 0:02:50.2]} 6... O-O {[%clk 0:02:58.3]}
7. O-O {[%clk 0:02:50.1]} 7... d5 {[%clk 0:02:58]} 8. b3 {[%clk 0:02:46.5]} 8...
Nbd7 {[%clk 0:02:54.9]} 9. Bb2 {[%clk 0:02:46.1]} 9... Qe7 {[%clk 0:02:55.3]}
10. a3 {[%clk 0:02:42.4]} 10... Bd6 {[%clk 0:02:54.1]} 11. b4 {[%clk 0:02:36.9]}
11... c5 {[%clk 0:02:48.5]} 12. dxc5 {[%clk 0:02:35]} 12... bxc5 {[%clk
0:02:49.4]} 13. b5 {[%clk 0:02:35.4]} 13... d4 {[%clk 0:02:48.2]} 14. Qc2 {[%clk
0:02:33.6]} 14... Ne5 {[%clk 0:02:33.1]} 15. a4 {[%clk 0:02:30.9]} 15... Nxf3+
{[%clk 0:02:31.1]} 16. exf3 {[%clk 0:02:30.8]} 16... Qd7 {[%clk 0:02:20.6]} 17.
a5 {[%clk 0:02:29.7]} 17... Rad8 {[%clk 0:02:20.1]} 18. Qd3 {[%clk 0:02:24.5]}
18... e5 {[%clk 0:02:18.9]} 19. Bc1 {[%clk 0:02:05.1]} 19... Rfe8 {[%clk
0:02:16.7]} 20. Ne4 {[%clk 0:02:04]} 20... Nxe4 {[%clk 0:02:15.3]} 21. fxe4
{[%clk 0:02:04.9]} 21... h6 {[%clk 0:02:11.2]} 22. Bd2 {[%clk 0:02:01.7]} 22...
f5 {[%clk 0:02:07.1]} 23. Rfe1 {[%clk 0:01:56.4]} 23... f4 {[%clk 0:01:12.2]}
24. Rab1 {[%clk 0:01:26.7]} 24... Rf8 {[%clk 0:01:05.9]} 25. a6 {[%clk
0:01:09.1]} 25... Bc8 {[%clk 0:00:53.3]} 26. gxf4 {[%clk 0:01:07.6]} 26... exf4
{[%clk 0:00:48.9]} 27. e5 {[%clk 0:01:08.5]} 27... Bc7 {[%clk 0:00:23.8]} 28.
Bd5+ {[%clk 0:00:55.3]} 28... Kh8 {[%clk 0:00:23.7]} 29. e6 {[%clk 0:00:47.6]}
29... Qe7 {[%clk 0:00:22.6]} 30. Kh1 {[%clk 0:00:30.8]} 30... f3 {[%clk
0:00:22.7]} 31. Re4 {[%clk 0:00:26.8]} 31... Qd6 {[%clk 0:00:18.4]} 32. Rh4
{[%clk 0:00:24.8]} 32... Bxe6 {[%clk 0:00:15.4]} 33. Bxh6 {[%clk 0:00:24.6]}
33... Bxd5 {[%clk 0:00:01.7]} 34. Bf4+ {[%clk 0:00:23.5]} 34... Kg8 {[%clk
0:00:01.9]} 35. Qh7+ {[%clk 0:00:20.5]} 1-0

[Event "Early-Titled-Tuesday-Blitz-February-27-2024"]
[Site "Chess.com"]
[Date "2024.02.27"]
[Round "6"]
[White "FREDERICKtheMATE"]
[Black "Vaathi_Coming"]
[Result "1-0"]
[WhiteElo "2682"]
[BlackElo "2895"]
[TimeControl "180+1"]
[EndTime "9:04:36 PST"]
[Termination "FREDERICKtheMATE won on time"]

1. d4 {[%clk 0:03:00.9]} 1... Nf6 {[%clk 0:02:59.8]} 2. c4 {[%clk 0:03:01.1]}
2... e6 {[%clk 0:02:59.5]} 3. Nf3 {[%clk 0:03:01.2]} 3... b6 {[%clk 0:02:58.9]}
4. g3 {[%clk 0:03:00.8]} 4... Bb7 {[%clk 0:02:57.9]} 5. Bg2 {[%clk 0:03:00.9]}
5... Be7 {[%clk 0:02:58.7]} 6. Nc3 {[%clk 0:02:59.5]} 6... O-O {[%clk
0:02:58.4]} 7. Qc2 {[%clk 0:02:59.8]} 7... d5 {[%clk 0:02:57.6]} 8. cxd5 {[%clk
0:02:59.5]} 8... exd5 {[%clk 0:02:58.5]} 9. O-O {[%clk 0:02:59.1]} 9... c5
{[%clk 0:02:59.1]} 10. dxc5 {[%clk 0:02:58.2]} 10... bxc5 {[%clk 0:03:00]} 11.
Bf4 {[%clk 0:02:57.8]} 11... Nbd7 {[%clk 0:02:59.5]} 12. Rac1 {[%clk 0:02:57.3]}
12... d4 {[%clk 0:02:55.9]} 13. Nb1 {[%clk 0:02:54.2]} 13... Re8 {[%clk
0:02:38]} 14. Nfd2 {[%clk 0:02:53.4]} 14... Bxg2 {[%clk 0:02:37.1]} 15. Kxg2
{[%clk 0:02:54.3]} 15... Nd5 {[%clk 0:02:37]} 16. Nc4 {[%clk 0:02:52.9]} 16...
Nxf4+ {[%clk 0:02:34.6]} 17. gxf4 {[%clk 0:02:53.8]} 17... Nb6 {[%clk
0:02:33.8]} 18. Nbd2 {[%clk 0:02:51.7]} 18... Bf6 {[%clk 0:02:27.8]} 19. Qd3
{[%clk 0:02:45.5]} 19... Nd5 {[%clk 0:02:24.6]} 20. Qf3 {[%clk 0:02:41.1]} 20...
Rxe2 {[%clk 0:02:15.5]} 21. Ne4 {[%clk 0:02:18.9]} 21... d3 {[%clk 0:02:15.7]}
22. Kg3 {[%clk 0:02:07.9]} 22... Ne7 {[%clk 0:01:44.5]} 23. Rfd1 {[%clk
0:01:52.5]} 23... Nf5+ {[%clk 0:01:42.9]} 24. Kh3 {[%clk 0:01:41.1]} 24... Qc8
{[%clk 0:00:58.1]} 25. Nxf6+ {[%clk 0:01:29.6]} 25... gxf6 {[%clk 0:00:56.9]}
26. Qg4+ {[%clk 0:01:29.3]} 26... Kh8 {[%clk 0:00:55.2]} 27. Rxd3 {[%clk
0:01:26.1]} 27... Re4 {[%clk 0:00:21.6]} 28. f3 {[%clk 0:00:56.7]} 28... Re8
{[%clk 0:00:10.9]} 29. Rd5 {[%clk 0:00:53.1]} 29... Ne7 {[%clk 0:00:06.3]} 30.
Qxc8 {[%clk 0:00:52.5]} 30... Raxc8 {[%clk 0:00:06.6]} 31. Rd7 {[%clk
0:00:53.1]} 31... Ng6 {[%clk 0:00:05]} 32. Nd6 {[%clk 0:00:51.1]} 32... Rg8
{[%clk 0:00:03.7]} 33. Nxf7+ {[%clk 0:00:39.6]} 33... Kg7 {[%clk 0:00:04]} 34.
Ng5+ {[%clk 0:00:38.7]} 34... Kf8 {[%clk 0:00:02]} 35. Nxh7+ {[%clk 0:00:38.7]}
35... Ke8 {[%clk 0:00:01.8]} 36. Nxf6+ {[%clk 0:00:39.4]} 36... Kf8 {[%clk
0:00:02.3]} 37. Nxg8 {[%clk 0:00:39.7]} 37... Kxg8 {[%clk 0:00:01.2]} 38. Rxa7
{[%clk 0:00:39.9]} 38... Nxf4+ {[%clk 0:00:01]} 39. Kg4 {[%clk 0:00:40.1]} 39...
Nd3 {[%clk 0:00:01.4]} 40. Rc3 {[%clk 0:00:34.9]} 1-0

[Event "Early-Titled-Tuesday-Blitz-February-27-2024"]
[Site "Chess.com"]
[Date "2024.02.27"]
[Round "6"]
[White "Semen16"]
[Black "Leebit02"]
[Result "1-0"]
[WhiteElo "2728"]
[BlackElo "2540"]
[TimeControl "180+1"]
[EndTime "9:04:39 PST"]
[Termination "Semen16 won by resignation"]

1. e4 {[%clk 0:03:00.9]} 1... c5 {[%clk 0:02:20.2]} 2. Nf3 {[%clk 0:03:00.5]}
2... e6 {[%clk 0:02:19.7]} 3. d4 {[%clk 0:03:00.3]} 3... cxd4 {[%clk 0:02:20.1]}
4. Nxd4 {[%clk 0:03:01.2]} 4... Nc6 {[%clk 0:02:20.4]} 5. Nc3 {[%clk 0:03:00.1]}
5... Nf6 {[%clk 0:02:20.6]} 6. Ndb5 {[%clk 0:02:59.4]} 6... d6 {[%clk
0:02:20.8]} 7. Bf4 {[%clk 0:02:58.9]} 7... e5 {[%clk 0:02:21.3]} 8. Bg5 {[%clk
0:02:59.3]} 8... a6 {[%clk 0:02:21.7]} 9. Na3 {[%clk 0:02:59.1]} 9... b5 {[%clk
0:02:21.5]} 10. Nd5 {[%clk 0:02:58.6]} 10... Be7 {[%clk 0:02:21.8]} 11. Bxf6
{[%clk 0:02:58.6]} 11... Bxf6 {[%clk 0:02:22.2]} 12. c3 {[%clk 0:02:56.8]} 12...
O-O {[%clk 0:02:22]} 13. Nc2 {[%clk 0:02:57.3]} 13... Rb8 {[%clk 0:02:22.2]} 14.
a4 {[%clk 0:02:52]} 14... bxa4 {[%clk 0:02:21.8]} 15. Ncb4 {[%clk 0:02:51.1]}
15... Nxb4 {[%clk 0:02:21.1]} 16. cxb4 {[%clk 0:02:52]} 16... Be6 {[%clk
0:02:20.4]} 17. Rxa4 {[%clk 0:02:46.2]} 17... Bxd5 {[%clk 0:02:03.6]} 18. exd5
{[%clk 0:02:41.7]} 18... e4 {[%clk 0:02:01.3]} 19. Bxa6 {[%clk 0:02:37.1]} 19...
e3 {[%clk 0:01:43.7]} 20. fxe3 {[%clk 0:02:15.5]} 20... Qe8 {[%clk 0:01:34.5]}
21. O-O {[%clk 0:02:09.2]} 21... Qxe3+ {[%clk 0:01:34.2]} 22. Kh1 {[%clk
0:02:09.5]} 22... Bxb2 {[%clk 0:01:26.5]} 23. b5 {[%clk 0:01:51.8]} 23... Be5
{[%clk 0:01:24.3]} 24. Rh4 {[%clk 0:01:44.4]} 24... h6 {[%clk 0:01:12.7]} 25.
Rh3 {[%clk 0:01:36.7]} 25... Qc5 {[%clk 0:01:04.9]} 26. Qd2 {[%clk 0:01:32.2]}
26... f5 {[%clk 0:00:44.8]} 27. Rc1 {[%clk 0:01:29]} 27... Qa7 {[%clk
0:00:37.5]} 28. Rf3 {[%clk 0:01:22]} 28... Bd4 {[%clk 0:00:31.4]} 29. Qd3 {[%clk
0:01:14.7]} 29... g6 {[%clk 0:00:31.4]} 30. Re1 {[%clk 0:01:00.5]} 30... Rbe8
{[%clk 0:00:30.6]} 31. Re6 {[%clk 0:00:58.1]} 31... Kh7 {[%clk 0:00:28]} 32.
Rxd6 {[%clk 0:00:51.7]} 32... Qc5 {[%clk 0:00:26.1]} 33. Rd7+ {[%clk 0:00:49.6]}
33... Kh8 {[%clk 0:00:26.5]} 34. Rf1 {[%clk 0:00:48.5]} 34... Re3 {[%clk
0:00:25.7]} 35. Qd2 {[%clk 0:00:44.8]} 35... Bc3 {[%clk 0:00:23.7]} 36. Qf2
{[%clk 0:00:34.6]} 36... Qc4 {[%clk 0:00:20.4]} 37. h3 {[%clk 0:00:29.9]} 37...
Re2 {[%clk 0:00:19.9]} 38. Qf3 {[%clk 0:00:29.3]} 38... Re3 {[%clk 0:00:19.8]}
39. Qxe3 {[%clk 0:00:25.6]} 39... Qxf1+ {[%clk 0:00:19.8]} 40. Kh2 {[%clk
0:00:26.4]} 40... Bf6 {[%clk 0:00:16.4]} 41. Qxh6+ {[%clk 0:00:26.1]} 1-0